[Event "VII Totalizator Sportowy 2022"]
[Site "Bydgoszcz"]
[Date "2022.07.01"]
[Round "7.15"]
[White "Dubnevych, Maksym"]
[Black "Kacprzak, Kacper"]
[Result "0-1"]
[ECO "B12"]
[WhiteElo "2048"]
[BlackElo "2238"]
[Annotator "TA"]
[PlyCount "110"]
[EventDate "2022.06.25"]
[EventType "swiss"]
[EventCountry "POL"]
[SourceTitle "playchess.com"]
[Source "ChessBase"]
[SourceQuality "1"]
[TimeControl "40/5400+30:1800+30"]

{[%evp 12,110,23,26,26,27,33,14,15,45,67,65,75,82,106,64,114,110,143,58,108,105,120,52,79,70,68,60,61,-42,77,27,37,39,35,26,29,14,13,0,0,0,0,0,-9,-25,-34,-16,-28,-25,-14,-68,-16,-27,0,-18,-30,-105,-94,-110,-85,-98,-103,-107,-75,-191,-161,-272,-273,-262,-300,-1087,-805,-1198,-1195,-1132,-1087,-872,-1026,-1002,-1068,-895,-840,-1729,-1572,-1725,-1450,-1722,-1717,-1634,-1307,-1700,-1307,-1390,-1270,-1281,-1278,-1183,-1033,-845,-698]} 1. e4 {[%emt 0:00:02]} c6 {[%emt 0:00:05]} 2. d4 {[%emt 0:00:03]} d5 {[%emt 0:00:03]} 3. e5 {[%emt 0:00:25]} Bf5 {[%emt 0:00:06]} 4. Nf3 {[%emt 0:01:16]} e6 {[%emt 0:00:06]} 5. Be2 {[%emt 0:00:02]} Nd7 {[%emt 0:00:23]} 6. O-O {[%emt 0:00:09]} Ne7 {[%emt 0:01:09]} 7. Nbd2 {[%emt 0:00:25]} h6 {[%emt 0:00:19] B12: Caro-Kann: Advance Variation.} 8. Nb3 {[%emt 0:00:57]} Qc7 {[%emt 0:03:08]} 9. Bd2 {[%emt 0:02:27]} g5 {[%emt 0:02:28] The position is equal.} 10. Rc1 {[%emt 0:01:23]} Bh7 {[%emt 0:06:54]} 11. a4 {[%emt 0:00:24][%cal Ba2a4,Ba4a5][%mdl 32]} Ng6 {[%emt 0:10:36]} 12. a5 {[%emt 0:05:17] [#]} Bg7 $146 {[%emt 0:07:52]} ({Predecessor:} 12... Be7 13. c4 dxc4 14. Bxc4 a6 15. Ne1 Nf4 16. Qf3 Nf8 17. Kh1 Rd8 18. Bxf4 gxf4 {1-0 (34) Haslinger,S (2506)-Hort,V (2478) Hoogeveen 2008}) 13. Bd3 {[%emt 0:02:20]} O-O {[%emt 0:01:36]} (13... b6 $14) 14. c4 $16 {[%emt 0:03:14]} dxc4 15. Bxc4 {[%emt 0:00:37]} (15. Rxc4 $16 g4 16. Ne1) 15... a6 {[%emt 0:06:15]} (15... b6 $14) 16. h3 {[%emt 0:01:19]} Rfe8 {[%emt 0:01:37]} 17. Nh2 {[%emt 0:06:40]} (17. Bd3 $16) 17... Rac8 {[%emt 0:14:56]} 18. Qh5 {[%emt 0:09:21] [#] And now Ng4 would win.} Ne7 {[%emt 0:06:58]} 19. h4 {[%emt 0:12:03]} (19. Ng4 Nf5 20. Ne3 c5 $11) (19. f4 $5 {[%cal Rf4g5]}) 19... Bg6 {[%emt 0:00:56]} 20. Qg4 {[%emt 0:00:43]} (20. Qf3 $14) 20... gxh4 {[%emt 0:02:08]} (20... h5 $1 $15 {stays ahead.} 21. Qe2 (21. Qxg5 Nf5 $15) 21... g4) 21. Qxh4 {[%emt 0:00:13]} (21. Rfe1 $16) 21... c5 $11 {[%emt 0:02:25]} 22. Qh3 {[%emt 0:00:57]} Nf5 {[%emt 0:08:50]} (22... cxd4 $2 {[#]} 23. Bxe6 $1 {[%mdl 512]} fxe6 24. Rxc7 Rxc7 25. Nxd4 $18) 23. g4 {[%emt 0:03:53]} Nxd4 {[%emt 0:00:14]} 24. Nxd4 {[%emt 0:00:01]} cxd4 {[%emt 0:00:01]} 25. Bxe6 {[%emt 0:00:46]} Qd8 {[%emt 0:00:19]} 26. Rxc8 {[%emt 0:00:31]} Qxc8 {[%emt 0:00:03]} 27. Bxd7 {[%emt 0:02:02]} Qxd7 {[%emt 0:00:05]} 28. f4 {[%emt 0:00:13] f5 is the strong threat.} Be4 {[%emt 0:01:19]} 29. Re1 {[%emt 0:04:24]} Qc6 {[%emt 0:02:46]} 30. Nf1 {[%emt 0:03:06][%cal Bh2f1,Bf1g3,Bg3f5][%mdl 32]} Qc2 {[%emt 0:03:16]} 31. Qh2 {[%emt 0:00:59]} (31. Qg3 $11) 31... Bf3 {[%emt 0:02:24]} ({Black should try} 31... Bc6 $15 32. Qg3 Bb5) 32. Qg3 {[%emt 0:04:35]} Be4 {[%emt 0:02:46]} 33. Qf2 {[%emt 0:00:34]} Qd3 {[%emt 0:02:20]} 34. Rc1 {[%emt 0:07:36] Against Rc8} (34. Qg3 $11 {remains equal.}) 34... Bc6 $17 {[%emt 0:02:46] Strongly threatening ...f6. Black is more active. Black converts the advantage convincingly.} 35. Ng3 {[%emt 0:04:46]} Bf3 {[%emt 0:01:17]} 36. Nf5 {[%emt 0:01:30]} Bxg4 {[%emt 0:00:42]} 37. Nxd4 {[%emt 0:00:38]} f6 {[%emt 0:02:55]} 38. Rc3 {[%emt 0:08:42]} (38. e6 $17) 38... Qb1+ $19 {[%emt 0:01:11]} 39. Kh2 {[%emt 0:00:45]} (39. Rc1 $142 Qxb2 40. f5) 39... fxe5 {[%emt 0:00:44]} 40. Rg3 {[%emt 0:00:00]} h5 {[%emt 0:00:00]} ({Stronger than} 40... exd4 41. Rxg4 Kh7 42. Rxg7+ Kxg7 43. Qxd4+ Kg6 44. Qd6+ Kh5 45. Qd5+ Kg6 46. Qd6+ (46. Qg2+ $2 Kf6 $19) 46... Kh5 47. Qd5+ Kh4 48. Qf3 $17) 41. fxe5 {[%emt 0:08:18]} (41. Qe3) 41... Bxe5 {[%emt 0:05:08] aiming for ...h4. This bishop pair is nice. Black is clearly winning.} 42. Bf4 {[%emt 0:00:01]} Rf8 {[%emt 0:04:31]} 43. Ne6 {[%emt 0:00:41]} Bxf4 {[%emt 0:07:31]} 44. Nxf4 {[%emt 0:00:37]} Qf5 {[%emt 0:03:05] Threatens to win with ...h4.} 45. Rb3 {[%emt 0:02:12]} Qxf4+ {[%emt 0:00:07]} 46. Qxf4 {[%emt 0:00:01]} Rxf4 {[%emt 0:00:07]} 47. Rxb7 {[%emt 0:00:01][%mdl 4096] Endgame KRB-KR} Be2 {[%emt 0:01:32]} 48. Kg3 {[%emt 0:00:09]} Rg4+ {[%emt 0:00:06]} 49. Kf2 {[%emt 0:00:02]} Bb5 {[%emt 0:00:05]} 50. Ke3 {[%emt 0:00:42]} Rb4 {[%emt 0:00:17]} 51. b3 {[%emt 0:00:03]} Rxb3+ {[%emt 0:00:11]} 52. Kf4 {[%emt 0:00:01]} Ra3 {[%emt 0:01:36]} 53. Kg5 {[%emt 0:00:10]} Rxa5 {[%emt 0:00:17] ( -> ...Bc6+)} 54. Kf6 {[%emt 0:00:01]} Ra1 {[%emt 0:00:37]} 55. Rb8+ {[%emt 0:00:07]} Kh7 {[%emt 0:00:05] Weighted Error Value: White=0.68/Black=0.41} 0-1

[Event "VII Totalizator Sportowy 2022"]
[Site "Bydgoszcz"]
[Date "2022.07.01"]
[Round "7.16"]
[White "Perkampus, Laurin"]
[Black "Ulasevich, Sergei"]
[Result "0-1"]
[ECO "E32"]
[WhiteElo "2061"]
[BlackElo "2217"]
[Annotator "RC"]
[PlyCount "120"]
[EventDate "2022.06.25"]
[EventType "swiss"]
[EventCountry "POL"]
[SourceTitle "playchess.com"]
[Source "ChessBase"]
[SourceQuality "1"]
[TimeControl "40/5400+30:1800+30"]

1. d4 {[%emt 0:02:07]} Nf6 {[%emt 0:00:06]} 2. c4 {[%emt 0:00:02]} e6 {[%emt 0:00:29]} 3. Nc3 {[%emt 0:00:07]} Bb4 {[%emt 0:00:05]} 4. Qc2 {[%emt 0:00:04]} O-O {[%emt 0:00:29]} 5. e4 {[%emt 0:00:10]} d5 {[%emt 0:00:27]} 6. e5 {[%emt 0:00:06]} Ne4 {[%emt 0:00:07]} 7. Bd3 {[%emt 0:00:03]} c5 {[%emt 0:00:14]} 8. Nge2 {[%emt 0:00:06]} cxd4 {[%emt 0:00:08]} 9. Nxd4 {[%emt 0:00:03]} Nd7 {[%emt 0:00:07]} 10. Bf4 {[%emt 0:00:07]} Qh4 {[%emt 0:00:21]} 11. g3 {[%emt 0:00:10]} Qh5 {[%emt 0:00:08]} 12. O-O {[%emt 0:00:11]} g5 {[%emt 0:00:14]} 13. cxd5 {[%emt 0:00:08]} gxf4 {[%emt 0:00:10]} 14. dxe6 {[%emt 0:02:22]} Nxe5 {[%emt 0:00:24]} 15. Nxe4 {[%emt 0:02:50]} fxe6 {[%emt 0:00:08]} 16. gxf4 {[%emt 0:10:40]} Qg4+ {[%emt 0:01:08]} 17. Kh1 {[%emt 0:02:24]} Qxf4 {[%emt 0:00:07]} 18. Rg1+ {[%emt 0:20:00]} Kh8 {[%emt 0:00:19]} 19. Rg3 {[%emt 0:10:40]} Bd7 {[%emt 0:01:19]} 20. Rag1 {[%emt 0:19:14]} Ba5 {[%emt 0:13:31]} 21. Ne2 {[%emt 0:03:17]} Qf5 {[%emt 0:17:18]} 22. Nd4 {[%emt 0:16:10]} Qf4 {[%emt 0:18:59]} 23. Ne2 {[%emt 0:00:41]} Qf7 {[%emt 0:00:25]} 24. b4 {[%emt 0:02:51]} Bd8 {[%emt 0:03:12]} 25. Qc3 {[%emt 0:05:27]} Bf6 {[%emt 0:00:41]} 26. Nxf6 {[%emt 0:00:52]} Qxf6 {[%emt 0:00:07]} 27. Be4 {[%emt 0:00:20]} Rac8 {[%emt 0:06:32]} 28. Qb2 {[%emt 0:01:37]} b6 {[%emt 0:13:11]} 29. f3 {[%emt 0:01:09]} Ng4 {[%emt 0:02:32]} 30. Qxf6+ {[%emt 0:00:27]} Nxf6 {[%emt 0:00:06]} 31. Rc1 {[%emt 0:00:55]} Nxe4 {[%emt 0:03:07]} 32. fxe4 {[%emt 0:00:07]} Rxc1+ 33. Nxc1 {[%emt 0:00:01]} Bc6 {[%emt 0:00:07]} 34. Kg1 {[%emt 0:01:14]} Bxe4 {[%emt 0:00:19]} 35. Re3 {[%emt 0:00:21]} Bd5 {[%emt 0:01:16]} 36. a4 {[%emt 0:00:36]} Kg7 {[%emt 0:05:35]} 37. Nd3 {[%emt 0:00:15]} Rf5 38. b5 {[%emt 0:00:35]} Kf6 {[%emt 0:02:21]} 39. Nb4 {[%emt 0:00:17]} h5 {[%emt 0:05:10]} 40. Nxd5+ {[%emt 0:00:00]} exd5 {[%emt 0:00:00]} 41. Rc3 {[%emt 0:11:06]} Rf4 {[%emt 0:04:22]} 42. Rc6+ {[%emt 0:02:14]} Ke5 {[%emt 0:00:23]} 43. a5 {[%emt 0:00:06]} bxa5 {[%emt 0:02:17]} 44. Ra6 {[%emt 0:00:12]} Rf7 {[%emt 0:00:44]} 45. Rxa5 {[%emt 0:00:12]} Ke4 {[%emt 0:00:06]} 46. Ra6 {[%emt 0:00:36]} d4 {[%emt 0:01:08]} 47. b6 {[%emt 0:00:28]} axb6 {[%emt 0:00:21]} 48. Rxb6 {[%emt 0:00:01]} d3 {[%emt 0:00:37]} 49. Re6+ {[%emt 0:01:30]} Kd4 {[%emt 0:00:35]} 50. Rd6+ {[%emt 0:00:40]} Kc3 {[%emt 0:00:29]} 51. Kg2 {[%emt 0:00:51]} Rf4 {[%emt 0:01:09]} 52. Kg3 {[%emt 0:00:59]} Rd4 {[%emt 0:00:08]} 53. Rc6+ {[%emt 0:00:07]} Kb3 {[%emt 0:03:10]} 54. Rb6+ {[%emt 0:00:11]} Kc4 {[%emt 0:00:18]} 55. Rc6+ {[%emt 0:00:07]} Kd5 {[%emt 0:00:10]} 56. Rc1 {[%emt 0:00:15]} d2 {[%emt 0:00:39]} 57. Rd1 {[%emt 0:00:08]} Kc4 {[%emt 0:00:26]} 58. Kf3 {[%emt 0:00:47]} Kc3 {[%emt 0:00:13]} 59. Ke2 {[%emt 0:00:20]} Kc2 {[%emt 0:00:28]} 60. Ra1 {[%emt 0:00:52]} d1=Q+ {[%emt 0:00:08]} 0-1

[Event "VII Totalizator Sportowy 2022"]
[Site "Bydgoszcz"]
[Date "2022.07.01"]
[Round "7.17"]
[White "Laux, Dominik"]
[Black "Syrkiewicz, Michal"]
[Result "1-0"]
[ECO "B43"]
[WhiteElo "2263"]
[BlackElo "2000"]
[Annotator "NA RC"]
[PlyCount "47"]
[EventDate "2022.06.25"]
[EventType "swiss"]
[EventCountry "POL"]
[SourceTitle "playchess.com"]
[Source "ChessBase"]
[SourceQuality "1"]
[TimeControl "40/5400+30:1800+30"]

1. e4 {[%emt 0:01:54]} c5 {[%emt 0:00:08]} 2. Nf3 {[%emt 0:00:26]} e6 {[%emt 0:00:09]} 3. d4 {[%emt 0:00:24]} cxd4 {[%emt 0:00:12]} 4. Nxd4 {[%emt 0:00:11]} a6 {[%emt 0:00:14]} 5. Nc3 {[%emt 0:00:41]} b5 {[%emt 0:00:28]} 6. Bd3 {[%emt 0:00:31]} Qb6 {[%emt 0:00:49]} 7. Nf3 {[%emt 0:00:14]} d6 {[%emt 0:03:07]} 8. a4 {[%emt 0:00:32]} b4 {[%emt 0:00:49]} 9. a5 {[%emt 0:00:06]} Qc7 {[%emt 0:00:32]} 10. Na4 {[%emt 0:00:10]} Nd7 {[%emt 0:02:02]} 11. Be3 {[%emt 0:00:52]} Bb7 {[%emt 0:03:26]} 12. Nb6 {[%emt 0:03:15]} Nxb6 {[%emt 0:03:09]} 13. axb6 {[%emt 0:03:02]} Qd7 {[%emt 0:01:58]} 14. Qe2 {[%emt 0:03:23]} Qc8 {[%emt 0:08:04]} 15. O-O {[%emt 0:07:01]} Nf6 $18 {[%emt 0:04:29]} 16. c3 {[%emt 0:02:17]} b3 {[%emt 0:03:02]} 17. Ra4 {[%emt 0:02:16]} d5 {[%emt 0:02:56]} 18. e5 {[%emt 0:06:33]} Nd7 {[%emt 0:00:35]} 19. Rfa1 {[%emt 0:04:58]} Bc5 {[%emt 0:04:07]} 20. Bxa6 {[%emt 0:03:55]} Ke7 {[%emt 0:01:53]} 21. Bxb7 {[%emt 0:00:40]} Rxa4 {[%emt 0:01:08]} 22. Rxa4 {[%emt 0:00:10]} Qxb7 {[%emt 0:00:10]} 23. Bxc5+ {[%emt 0:00:05]} Nxc5 {[%emt 0:00:04]} 24. Ra7 {[%emt 0:00:04]} 1-0

[Event "VII Totalizator Sportowy 2022"]
[Site "Bydgoszcz"]
[Date "2022.07.01"]
[Round "7.18"]
[White "Dzhuguryan, Tygran"]
[Black "Rog, Bartlomiej"]
[Result "0-1"]
[ECO "D10"]
[WhiteElo "2203"]
[BlackElo "2055"]
[Annotator "RC"]
[PlyCount "94"]
[EventDate "2022.06.25"]
[EventType "swiss"]
[EventCountry "POL"]
[SourceTitle "playchess.com"]
[Source "ChessBase"]
[SourceQuality "1"]
[TimeControl "40/5400+30:1800+30"]

1. Nf3 {[%emt 0:00:05]} d5 {[%emt 0:00:10]} 2. d4 {[%emt 0:00:14]} Nf6 {[%emt 0:00:12]} 3. c4 {[%emt 0:00:06]} c6 {[%emt 0:00:07]} 4. cxd5 {[%emt 0:00:07]} cxd5 {[%emt 0:00:10]} 5. Nc3 {[%emt 0:00:04]} Nc6 {[%emt 0:00:10]} 6. Bf4 {[%emt 0:00:03]} a6 {[%emt 0:00:11]} 7. e3 {[%emt 0:00:20]} Nh5 {[%emt 0:00:11]} 8. Be5 {[%emt 0:00:30]} f6 {[%emt 0:05:12]} 9. Bg3 {[%emt 0:00:04]} Nxg3 {[%emt 0:04:06]} 10. hxg3 {[%emt 0:00:00]} Bg4 {[%emt 0:17:26]} 11. Bd3 {[%emt 0:11:34]} e6 {[%emt 0:03:27]} 12. Bg6+ {[%emt 0:03:22]} Kd7 {[%emt 0:00:42]} 13. a3 {[%emt 0:01:03]} Bxa3 {[%emt 0:06:31]} 14. Rxa3 {[%emt 0:01:38]} hxg6 {[%emt 0:00:14]} 15. Rxh8 Qxh8 {[%emt 0:00:07]} 16. Kd2 {[%emt 0:02:16]} b5 {[%emt 0:01:58]} 17. Ne2 {[%emt 0:02:47]} Qf8 {[%emt 0:16:15]} 18. Rc3 {[%emt 0:07:51]} Na5 {[%emt 0:03:18]} 19. Qa1 {[%emt 0:07:46]} Qb4 {[%emt 0:03:32]} 20. Kd1 {[%emt 0:01:15]} Rh8 {[%emt 0:04:44]} 21. Nfg1 {[%emt 0:00:15]} Bxe2+ {[%emt 0:03:44]} 22. Kxe2 {[%emt 0:00:03]} Rh1 {[%emt 0:00:12]} 23. Kf1 {[%emt 0:04:20]} Nc4 {[%emt 0:00:30]} 24. Qc1 {[%emt 0:00:03]} Qa5 {[%emt 0:04:15]} 25. b3 {[%emt 0:00:21]} b4 {[%emt 0:01:16]} 26. Rc2 {[%emt 0:00:25]} Na3 {[%emt 0:01:03]} 27. Rc5 {[%emt 0:00:44]} Nb5 {[%emt 0:00:56]} 28. Rc2 {[%emt 0:06:02]} Nc3 {[%emt 0:02:52]} 29. f3 {[%emt 0:00:13]} Qb5+ {[%emt 0:01:14]} 30. Kf2 {[%emt 0:00:02]} Qd3 {[%emt 0:00:11]} 31. Rd2 {[%emt 0:00:44]} Rxg1 {[%emt 0:09:06]} 32. Kxg1 {[%emt 0:00:04]} Qxe3+ {[%emt 0:03:08]} 33. Kf1 {[%emt 0:01:04]} Ne2 {[%emt 0:00:06]} 34. Qe1 {[%emt 0:00:44]} Nxg3+ {[%emt 0:00:07]} 35. Qxg3 {[%emt 0:00:08]} Qxd2 {[%emt 0:00:04]} 36. Qb8 {[%emt 0:04:04]} Qd1+ {[%emt 0:00:40]} 37. Kf2 {[%emt 0:00:01]} Qxd4+ {[%emt 0:00:10]} 38. Kf1 {[%emt 0:00:10]} Qd1+ {[%emt 0:00:14]} 39. Kf2 {[%emt 0:00:05]} Qxb3 {[%emt 0:05:04]} 40. Qb7+ {[%emt 0:00:00]} Kd6 {[%emt 0:00:00]} 41. Qxa6+ {[%emt 0:00:47]} Kc5 {[%emt 0:02:21]} 42. Qc8+ {[%emt 0:00:49]} Kd4 {[%emt 0:01:15]} 43. Qxe6 {[%emt 0:00:03]} Qc2+ {[%emt 0:00:49]} 44. Ke1 {[%emt 0:02:24]} b3 {[%emt 0:01:22]} 45. Qb6+ {[%emt 0:00:47]} Kd3 {[%emt 0:00:17]} 46. Qa6+ {[%emt 0:01:37]} Qc4 {[%emt 0:00:12]} 47. Qa3 {[%emt 0:00:26]} Kc2 {[%emt 0:00:21]} 0-1

[Event "VII Totalizator Sportowy 2022"]
[Site "Bydgoszcz"]
[Date "2022.07.01"]
[Round "7.19"]
[White "Zalega, Maciej"]
[Black "Kacprzak, Karol"]
[Result "0-1"]
[ECO "B48"]
[WhiteElo "2051"]
[BlackElo "2200"]
[Annotator "NA RC"]
[PlyCount "72"]
[EventDate "2022.06.25"]
[EventType "swiss"]
[EventCountry "POL"]
[SourceTitle "playchess.com"]
[Source "ChessBase"]
[SourceQuality "1"]
[TimeControl "40/5400+30:1800+30"]

1. e4 {[%emt 0:00:03]} c5 {[%emt 0:00:08]} 2. Nf3 {[%emt 0:00:05]} e6 {[%emt 0:00:08]} 3. d4 {[%emt 0:00:04]} cxd4 {[%emt 0:00:04]} 4. Nxd4 {[%emt 0:00:04]} Nc6 {[%emt 0:00:07]} 5. Nc3 {[%emt 0:00:14]} Qc7 {[%emt 0:00:18]} 6. Be3 {[%emt 0:00:06]} a6 {[%emt 0:00:47]} 7. Qf3 {[%emt 0:01:06]} Ne5 {[%emt 0:01:15]} 8. Qg3 {[%emt 0:02:00]} h5 {[%emt 0:00:26]} 9. Bf4 {[%emt 0:01:52]} d6 {[%emt 0:00:28]} 10. Nb3 {[%emt 0:22:58]} h4 {[%emt 0:04:10]} 11. Qe3 {[%emt 0:03:34]} Nf6 {[%emt 0:11:55]} 12. h3 {[%emt 0:03:00]} b5 {[%emt 0:03:31]} 13. Bd3 {[%emt 0:09:53]} Bb7 {[%emt 0:12:18]} 14. a3 {[%emt 0:13:30]} Rc8 {[%emt 0:05:07]} 15. O-O {[%emt 0:04:03]} Be7 {[%emt 0:02:54]} 16. Rad1 {[%emt 0:01:42]} Ba8 {[%emt 0:08:33]} 17. Bg5 {[%emt 0:04:42]} Rb8 {[%emt 0:20:26]} 18. Nd2 {[%emt 0:16:14]} Qc5 {[%emt 0:02:43]} 19. Qe2 {[%emt 0:04:10]} Nh5 {[%emt 0:07:28]} 20. Be3 {[%emt 0:02:10]} Qc7 {[%emt 0:00:11]} 21. Nf3 {[%emt 0:02:44]} g6 {[%emt 0:02:12]} 22. Nxe5 {[%emt 0:02:03]} dxe5 {[%emt 0:00:05]} 23. Qg4 {[%emt 0:00:35]} Nf6 {[%emt 0:08:55]} 24. Qe2 {[%emt 0:00:23]} O-O {[%emt 0:01:12]} 25. f4 {[%emt 0:01:16]} Bc5 {[%emt 0:00:48]} 26. Kh1 {[%emt 0:00:32]} Nh5 {[%emt 0:00:23]} 27. Rf3 {[%emt 0:01:05]} Bxe3 {[%emt 0:02:27]} 28. Qxe3 {[%emt 0:00:14]} exf4 {[%emt 0:00:01]} 29. Qe1 {[%emt 0:02:25]} Ng3+ {[%emt 0:00:14]} 30. Kh2 {[%emt 0:00:04]} e5 {[%emt 0:00:36]} 31. b3 {[%emt 0:01:18]} Rbc8 {[%emt 0:00:58]} 32. Nd5 {[%emt 0:00:05]} Bxd5 {[%emt 0:00:32]} 33. exd5 {[%emt 0:00:01]} Qd6 {[%emt 0:00:27]} 34. a4 {[%emt 0:00:58]} e4 {[%emt 0:00:59]} 35. Bxe4 {[%emt 0:00:11]} Rfe8 {[%emt 0:00:01]} 36. Rd4 {[%emt 0:00:21]} f5 {[%emt 0:00:09]} 0-1

[Event "VII Totalizator Sportowy 2022"]
[Site "Bydgoszcz"]
[Date "2022.07.01"]
[Round "7.20"]
[White "Lambrecht, Tomasz"]
[Black "Ratajczak, Hubert"]
[Result "1-0"]
[ECO "E62"]
[WhiteElo "1956"]
[BlackElo "1899"]
[Annotator "NA RC"]
[PlyCount "153"]
[EventDate "2022.06.25"]
[EventType "swiss"]
[EventCountry "POL"]
[SourceTitle "playchess.com"]
[Source "ChessBase"]
[SourceQuality "1"]
[TimeControl "40/5400+30:1800+30"]

1. d4 {[%emt 0:02:41]} Nf6 {[%emt 0:00:01]} 2. Nf3 {[%emt 0:00:09]} g6 {[%emt 0:00:08]} 3. g3 {[%emt 0:00:29]} Bg7 {[%emt 0:00:10]} 4. Bg2 {[%emt 0:00:12]} O-O {[%emt 0:00:03]} 5. O-O {[%emt 0:00:32]} d6 {[%emt 0:00:14]} 6. c4 {[%emt 0:00:11]} Bg4 {[%emt 0:01:36]} 7. Nc3 {[%emt 0:00:27]} Nc6 {[%emt 0:02:21]} 8. d5 {[%emt 0:00:08]} Na5 {[%emt 0:01:44]} 9. b3 {[%emt 0:00:52]} c5 {[%emt 0:01:10]} 10. Bd2 {[%emt 0:00:12]} a6 {[%emt 0:02:08]} 11. h3 {[%emt 0:01:05]} Bd7 {[%emt 0:00:31]} 12. e4 {[%emt 0:02:23]} b5 {[%emt 0:01:53]} 13. e5 {[%emt 0:03:47]} Ne8 {[%emt 0:02:46]} 14. Qe1 {[%emt 0:02:28]} bxc4 {[%emt 0:05:18]} 15. Nd1 {[%emt 0:02:22]} Nxb3 {[%emt 0:01:05]} 16. axb3 {[%emt 0:00:09]} cxb3 {[%emt 0:00:01]} 17. Qe3 {[%emt 0:00:16]} c4 {[%emt 0:11:55]} 18. Nb2 {[%emt 0:17:27]} Bb5 {[%emt 0:07:43]} 19. Rfc1 {[%emt 0:06:17]} Rc8 {[%emt 0:00:33]} 20. Bc3 {[%emt 0:02:54]} Nc7 {[%emt 0:06:54]} 21. Nd2 {[%emt 0:19:09]} dxe5 {[%emt 0:03:46]} 22. Ndxc4 {[%emt 0:02:31]} Nxd5 {[%emt 0:00:40]} 23. Bxd5 {[%emt 0:00:11]} Qxd5 {[%emt 0:04:27]} 24. Nb6 {[%emt 0:00:08]} Qe6 {[%emt 0:01:28]} 25. Nxc8 {[%emt 0:00:20]} Rxc8 {[%emt 0:00:03]} 26. Bd2 {[%emt 0:16:58]} Bc6 {[%emt 0:01:28]} 27. Rxa6 {[%emt 0:05:52]} Qd5 {[%emt 0:00:22]} 28. Rcxc6 {[%emt 0:00:46]} Rxc6 {[%emt 0:01:23]} 29. Rxc6 {[%emt 0:01:09]} Qxc6 {[%emt 0:00:02]} 30. Qxb3 {[%emt 0:00:10]} h5 {[%emt 0:01:12]} 31. Nc4 {[%emt 0:04:51]} Qd5 {[%emt 0:11:05]} 32. Bb4 {[%emt 0:04:30]} Bf6 {[%emt 0:00:51]} 33. Nd2 {[%emt 0:01:58]} Qd4 {[%emt 0:06:39]} 34. Nf1 {[%emt 0:01:29]} e4 {[%emt 0:04:49]} 35. Qa3 Qe5 {[%emt 0:01:41]} 36. Bd2 {[%emt 0:01:13]} Kg7 {[%emt 0:00:50]} 37. Qe3 {[%emt 0:00:26]} g5 {[%emt 0:01:08]} 38. Bc1 {[%emt 0:00:42]} Qa1 {[%emt 0:05:17]} 39. Kg2 {[%emt 0:00:16]} Qb1 {[%emt 0:00:56]} 40. Bd2 {[%emt 0:00:00]} Qc2 {[%emt 0:00:00]} 41. Bb4 {[%emt 0:02:27]} Qd3 {[%emt 0:21:43]} 42. Nd2 {[%emt 0:04:05]} Qxe3 {[%emt 0:00:28]} 43. fxe3 {[%emt 0:00:14]} e6 {[%emt 0:00:09]} 44. Nxe4 {[%emt 0:00:51]} Bd8 {[%emt 0:00:02]} 45. g4 {[%emt 0:07:04]} hxg4 {[%emt 0:00:38]} 46. hxg4 {[%emt 0:00:02]} f5 {[%emt 0:02:27]} 47. Nc5 {[%emt 0:04:41]} Kf7 {[%emt 0:01:32]} 48. Kf3 {[%emt 0:00:34]} Bc7 {[%emt 0:09:38]} 49. e4 {[%emt 0:01:00]} f4 {[%emt 0:00:51]} 50. Nd3 {[%emt 0:03:21]} e5 {[%emt 0:00:18]} 51. Ke2 {[%emt 0:00:14]} Ke6 {[%emt 0:01:09]} 52. Ne1 {[%emt 0:01:11]} Bd8 {[%emt 0:02:09]} 53. Nf3 {[%emt 0:00:16]} Bf6 {[%emt 0:04:53]} 54. Kd3 {[%emt 0:00:06]} Kf7 {[%emt 0:00:59]} 55. Kc4 {[%emt 0:00:15]} Ke6 {[%emt 0:00:04]} 56. Kb5 {[%emt 0:00:32]} Bd8 {[%emt 0:01:37]} 57. Kc6 {[%emt 0:00:17]} Bf6 {[%emt 0:00:32]} 58. Bc3 {[%emt 0:00:08]} Bg7 {[%emt 0:00:43]} 59. Nxg5+ {[%emt 0:00:22]} Kf6 {[%emt 0:00:08]} 60. Nf3 {[%emt 0:00:10]} Ke6 {[%emt 0:00:19]} 61. g5 {[%emt 0:01:21]} Bh8 {[%emt 0:00:26]} 62. Kc5 {[%emt 0:01:01]} Bg7 {[%emt 0:00:12]} 63. Kc4 {[%emt 0:00:15]} Bf8 {[%emt 0:00:38]} 64. Bxe5 {[%emt 0:00:24]} Kf7 {[%emt 0:00:23]} 65. Bxf4 {[%emt 0:00:45]} Kg6 {[%emt 0:00:06]} 66. Kd5 {[%emt 0:01:04]} Kf7 {[%emt 0:00:10]} 67. Nh4 {[%emt 0:00:30]} Be7 {[%emt 0:00:24]} 68. Ke5 {[%emt 0:00:14]} Bd8 {[%emt 0:00:09]} 69. Kf5 {[%emt 0:00:19]} Kg7 {[%emt 0:00:12]} 70. Be5+ {[%emt 0:00:18]} Kf7 {[%emt 0:00:05]} 71. g6+ {[%emt 0:00:30]} Kg8 {[%emt 0:00:07]} 72. Nf3 {[%emt 0:00:11]} Be7 {[%emt 0:00:15]} 73. Ng5 {[%emt 0:00:12]} Bd8 {[%emt 0:00:07]} 74. Nf7 {[%emt 0:00:16]} Bh4 {[%emt 0:00:22]} 75. Nh6+ {[%emt 0:00:22]} Kf8 {[%emt 0:00:20]} 76. g7+ {[%emt 0:00:26]} Ke7 {[%emt 0:00:05]} 77. g8=Q {[%emt 0:00:36]} 1-0